bitfinex/quotes_SOLUSD_20260309
["timestamp","ask_amount","ask_price","bid_price","bid_amount"]
[1773027741469,2.66953791,83.184,83.161,12.02486742]
[1773027743780,2.66953791,83.184,83.161,13.30069266]
[1773027743987,2.66953791,83.184,83.162,1.27582524]
[1773027744188,2.66953791,83.184,83.161,12.02486742]
[1773027746089,2.66953791,83.182,83.16,4.44038965]
[1773027746588,2.66953791,83.182,83.16,16.46537391]
[1773027747290,12.02168712,83.183,83.141,1.26229395]
[1773027747291,2.66953791,83.179,83.141,1.26229395]
[1773027747768,2.66953791,83.179,83.14,4.44038965]
[1773027748281,2.66953791,83.177,83.141,12.02776007]
[1773027749173,2.66953791,83.177,83.141,13.28675229]
[1773027750189,2.66953791,83.175,83.142,1.25572635]
[1773027750573,2.66953791,83.198,83.161,1.25253546]
[1773027752889,2.66953791,83.196,83.162,12.02472283]
[1773027754595,2.66953791,83.196,83.16,4.44038965]
[1773027754783,2.64069877,83.189,83.155,12.0257047]
[1773027755185,2.64069877,83.187,83.151,13.26336232]
[1773027755384,2.64069877,83.187,83.152,1.23407428]
[1773027755891,2.64069877,83.187,83.16,4.44038965]
[1773027756474,2.64069877,83.187,83.156,1.23407428]
[1773027756677,2.64069877,83.187,83.16,4.44038965]
[1773027757295,12.02025421,83.193,83.162,1.22823136]
[1773027757791,2.64069877,83.192,83.162,1.22823136]
[1773027758702,2.64069877,83.192,83.164,1.22535808]
[1773027760203,2.64069877,83.19,83.16,4.44038965]
[1773027760494,2.64069877,83.19,83.161,12.02473879]
[1773027760699,2.64069877,83.187,83.15,4.44038965]
[1773027760887,2.64069877,83.187,83.151,12.02631357]
[1773027762295,2.64069877,83.179,83.137,12.02828425]
[1773027762496,42.07337596,83.188,83.137,12.02828425]
[1773027762497,2.64069877,83.169,83.137,12.02828425]
[1773027762805,2.64069877,83.167,83.133,1.21416025]
[1773027763299,2.64069877,83.167,83.14,4.44038965]
[1773027763599,2.64069877,83.167,83.133,1.21416025]
[1773027763900,2.64069877,83.167,83.14,4.44038965]
[1773027764200,2.64069877,83.167,83.133,1.21416025]
[1773027765289,2.64069877,83.167,83.141,1.20877722]
[1773027765827,4.44038965,83.16,83.129,12.02944154]
[1773027765993,2.64069877,83.159,83.129,12.02944154]
[1773027766900,2.64069877,83.157,83.123,30.07578713]
[1773027767601,2.64069877,83.157,83.121,12.0306541]
[1773027769205,2.64069877,83.155,83.121,12.0306541]
[1773027771200,2.64069877,83.155,83.114,1.1983598]
[1773027771201,2.64069877,83.149,83.116,12.03130946]
[1773027772905,2.64069877,83.147,83.116,1.18840809]
[1773027774012,2.64069877,83.147,83.121,1.18600379]
[1773027776006,2.64069877,83.147,83.122,12.03050937]
[1773027776213,2.64069877,83.147,83.123,1.1813004]
[1773027776394,12.02674748,83.148,83.13,4.44571601]
[1773027776708,2.64069877,83.153,83.13,4.44571601]
[1773027777100,2.64069877,83.153,83.131,1.17894351]
[1773027778111,2.64069877,83.153,83.13,16.47502075]
[1773027778490,2.64069877,83.151,83.12,4.44571601]
[1773027778694,2.64069877,83.151,83.113,12.03181211]
[1773027779695,2.64069877,83.151,83.114,1.17213223]
[1773027780109,2.64069877,83.151,83.13,4.44571601]
[1773027780705,2.64069877,83.149,83.13,4.44571601]
[1773027781016,2.64069877,83.149,83.123,1.17213223]
[1773027781611,2.64069877,83.149,83.11,16.47796145]
[1773027781801,2.64069877,83.139,83.11,12.03224544]
[1773027782616,2.64069877,83.137,83.11,4.44571601]
[1773027782799,2.64069877,83.137,83.1,100.0]
[1773027783319,2.64069877,83.137,83.101,12.03354953]
[1773027784120,2.74680446,83.129,83.1,100.0]
[1773027784307,2.74680446,83.129,83.101,12.03354953]
[1773027785215,48.05494846,83.239,83.101,12.03354953]
[1773027785216,12.02515662,83.159,83.13,4.44571601]
[1773027785401,12.02371075,83.169,83.141,2.73447215]
[1773027786805,30.05843397,83.172,83.141,2.73447215]
[1773027787012,2.74680446,83.171,83.141,2.73447215]
[1773027787720,2.74680446,83.171,83.14,4.44571601]
[1773027789418,2.74973307,83.169,83.14,4.44571601]
[1773027790906,2.74973307,83.169,83.137,2.63378822]
[1773027791102,2.74973307,83.159,83.131,12.02918577]
[1773027791318,2.74973307,83.157,83.125,2.63378822]
[1773027793031,2.74973307,83.155,83.121,12.03052571]
[1773027793208,2.74973307,83.155,83.12,4.44571601]
[1773027793414,2.74973307,83.149,83.117,2.63378822]
[1773027793613,2.74973307,83.149,83.12,4.44571601]
[1773027793816,14.77532352,83.156,83.121,2.63378822]
[1773027794015,14.77532352,83.156,83.131,2.63378822]
[1773027794334,2.74973307,83.155,83.131,2.63378822]
[1773027795231,2.74973307,83.162,83.131,2.63378822]
[1773027795427,2.74973307,83.168,83.141,2.63378822]
[1773027795728,30.05615639,83.178,83.151,2.63378822]
[1773027795729,12.02309533,83.174,83.151,2.63378822]
[1773027795926,14.7728284,83.174,83.151,2.63378822]
[1773027796116,2.74973307,83.173,83.151,2.63378822]
[1773027796525,2.74973307,83.173,83.141,2.63378822]
[1773027798729,2.74973307,83.171,83.141,12.02766173]
[1773027799226,2.74973307,83.187,83.151,2.63378822]
[1773027800924,2.74973307,83.185,83.153,2.63378822]
[1773027801630,2.74973307,83.185,83.152,12.02616894]
[1773027801631,2.74973307,83.185,83.161,2.63378822]
[1773027801839,2.74973307,83.209,83.17,4.44571601]
[1773027802038,2.74973307,83.209,83.17,7.07950423]
[1773027802714,42.06326314,83.208,83.171,2.63378822]
[1773027803030,2.74973307,83.207,83.171,2.63378822]
[1773027803627,2.74973307,83.207,83.172,12.02327706]
[1773027803930,2.74973307,83.207,83.171,2.63378822]
[1773027805234,2.74973307,83.205,83.172,2.63378822]
[1773027805414,2.74973307,83.205,83.181,2.63378822]
[1773027806021,4.44571601,83.22,83.181,2.63378822]
[1773027806022,14.76750771,83.211,83.181,2.63378822]
[1773027808115,2.74973307,83.211,83.183,2.63378822]
[1773027808316,2.74973307,83.224,83.191,2.63378822]
[1773027809345,2.74973307,83.219,83.191,2.63378822]
[1773027810816,12.01663101,83.218,83.191,2.63378822]
[1773027811014,2.74973307,83.217,83.191,2.63378822]
[1773027811329,2.74973307,83.219,83.181,2.63378822]
[1773027811514,2.74973307,83.219,83.182,2.63378822]
[1773027811835,2.74973307,83.199,83.173,2.63378822]
[1773027812218,4.44571601,83.2,83.173,2.63378822]
[1773027812525,2.74973307,83.207,83.173,2.63378822]
[1773027812729,2.74973307,83.206,83.173,2.63378822]
[1773027812927,4.44571601,83.19,83.14,2.71626732]
[1773027813122,4.44571601,83.19,83.139,42.09817293]
[1773027813123,2.77714608,83.189,83.151,2.71626732]
[1773027813324,4.44571601,83.19,83.151,2.71626732]
[1773027813526,2.77714608,83.196,83.16,4.44571601]
[1773027813831,2.77714608,83.196,83.161,2.71626732]
[1773027814434,2.77714608,83.189,83.161,2.71626732]
[1773027814614,4.44571601,83.19,83.161,2.71626732]
[1773027815019,2.77714608,83.188,83.163,2.71626732]
[1773027815542,2.77714608,83.199,83.163,2.71626732]
[1773027816814,2.77714608,83.199,83.165,2.71626732]
[1773027818235,2.77714608,83.206,83.17,4.44571601]
[1773027818437,2.77714608,83.204,83.171,2.71626732]
[1773027819133,2.77714608,83.199,83.173,2.71626732]
[1773027820727,2.77714608,83.189,83.166,14.74033114]
[1773027820928,2.77714608,83.189,83.167,2.71626732]
[1773027821446,2.77714608,83.198,83.169,2.71626732]
[1773027824149,2.77714608,83.209,83.171,2.71626732]
[1773027824840,2.77714608,83.216,83.181,2.71626732]
[1773027825544,4.44571601,83.22,83.181,2.71626732]
[1773027825751,2.77714608,83.218,83.181,2.71626732]
[1773027827744,2.77714608,83.218,83.183,2.71626732]
[1773027827944,2.77714608,83.216,83.183,2.71626732]
[1773027828143,2.77714608,83.199,83.182,12.02183164]
[1773027828332,4.44571601,83.19,83.17,2.71626732]
[1773027828646,2.77714608,83.189,83.15,4.44571601]
[1773027830046,2.77714608,83.187,83.151,12.02631357]
[1773027830647,2.77714608,83.187,83.152,1.16870726]
[1773027831151,12.02096456,83.188,83.141,12.02776007]
[1773027831152,2.77714608,83.169,83.141,12.02776007]
[1773027831357,2.77714608,83.169,83.142,1.17027994]
[1773027832235,2.77714608,83.169,83.143,12.02747074]
[1773027832434,2.77714608,83.169,83.144,1.17179758]
[1773027835052,2.77714608,83.167,83.137,1.17494265]
[1773027835245,2.77714608,83.167,83.13,4.44378616]
[1773027835750,2.77714608,83.159,83.129,1.17494265]
[1773027839044,2.77714608,83.159,83.131,1.18083626]
[1773027839240,2.77714608,83.165,83.131,1.18083626]
[1773027839444,2.77714608,83.165,83.13,46.54651681]
[1773027839445,12.02368316,83.17,83.141,1.18230472]
[1773027840257,2.77714608,83.169,83.141,1.18230472]
[1773027840459,2.77714608,83.189,83.151,1.18370022]
[1773027840658,2.77714608,83.189,83.161,1.18370022]
[1773027841038,4.44378616,83.18,83.14,4.44378616]
[1773027841243,2.77714608,83.179,83.141,1.18370022]
[1773027842343,2.77714608,83.179,83.141,1.1864672]
[1773027843760,12.02232052,83.179,83.151,1.18916249]
[1773027844058,2.70192574,83.178,83.151,1.18916249]
[1773027845459,2.70192574,83.178,83.143,1.19176566]
[1773027845955,2.70192574,83.176,83.145,1.19176566]
[1773027846737,2.70192574,83.176,83.144,12.02732608]
[1773027846939,4.44378616,83.16,83.131,12.02920691]
[1773027847155,2.70192574,83.159,83.131,12.02920691]
[1773027847458,2.70192574,83.159,83.132,1.19431179]
[1773027848459,2.70192574,83.159,83.133,12.02891751]
[1773027848959,2.70192574,83.159,83.134,1.19680407]
[1773027849549,2.70192574,83.159,83.134,1.1980914]
[1773027849957,2.60108928,83.157,83.133,12.02891751]
[1773027850364,2.60108928,83.157,83.134,1.1980914]
[1773027851850,2.60108928,83.157,83.135,12.02862813]
[1773027852742,2.60108928,83.157,83.136,1.19572897]
[1773027855064,2.60108928,83.157,83.137,13.22054868]
[1773027856270,2.60108928,83.157,83.132,1.19046435]
[1773027856966,2.60108928,83.156,83.131,12.02920691]
[1773027858156,2.60108928,83.154,83.121,12.0306541]
[1773027858664,2.60108928,83.154,83.122,1.18546832]
[1773027859571,2.60108928,83.154,83.121,12.0306541]
[1773027860074,2.60108928,83.149,83.122,1.18383396]
[1773027860253,2.60108928,83.147,83.123,12.03036464]
[1773027860664,2.60108928,83.147,83.124,1.18222198]
[1773027861355,2.60108928,83.153,83.124,1.18222198]
[1773027861656,2.60108928,83.179,83.141,1.18059471]
[1773027861864,2.60108928,83.169,83.141,1.18059471]
[1773027862174,2.60108928,83.159,83.124,1.18059471]
[1773027862369,2.60108928,83.159,83.131,1.17897978]
[1773027863967,2.60108928,83.157,83.125,12.03007518]
[1773027864173,2.60108928,83.149,83.125,12.03007518]
[1773027864551,2.60108928,83.149,83.121,13.20647251]
[1773027864753,2.60108928,83.149,83.122,1.17581841]
[1773027866878,2.60108928,83.149,83.121,42.10728936]
[1773027866879,2.60108928,83.149,83.124,1.1727968]
[1773027870083,2.60108928,83.149,83.126,1.16840195]
[1773027872872,2.60108928,83.159,83.131,1.16276638]
[1773027873981,2.76483532,83.158,83.127,42.10425011]
[1773027874182,2.76483532,83.158,83.128,1.16139915]
[1773027875967,2.76483532,83.156,83.129,13.1882364]
[1773027877785,4.44378616,83.16,83.129,13.1882364]
[1773027877786,2.76483532,83.154,83.129,13.1882364]
[1773027877981,2.76483532,83.149,83.111,1.15606884]
[1773027878372,2.76483532,83.149,83.121,1.15478035]
[1773027880984,2.76483532,83.154,83.123,1.15227126]
[1773027881190,2.76483532,83.159,83.131,1.15227126]
[1773027882788,12.02226523,83.179,83.141,2.63952297]
[1773027883387,12.02226523,83.179,83.143,2.63952297]
[1773027884280,4.44378616,83.17,83.143,2.63952297]
[1773027884782,2.76483532,83.169,83.143,2.63952297]
[1773027885772,2.76483532,83.169,83.145,2.63952297]
[1773027887071,2.76483532,83.167,83.145,2.63952297]
[1773027888589,12.02414448,83.166,83.145,2.63952297]
[1773027888773,2.76483532,83.165,83.144,12.02732608]
[1773027890778,2.76483532,83.165,83.144,2.63952297]
[1773027893496,2.76483532,83.165,83.145,12.02718143]
[1773027893995,2.76483532,83.163,83.14,2.63952297]
[1773027895692,2.76483532,83.163,83.142,2.63952297]
[1773027896295,2.76483532,83.163,83.137,2.63952297]
[1773027896995,0.28432314,83.198,83.136,12.02840192]
[1773027896996,2.76483532,83.172,83.141,2.63952297]
[1773027897584,2.76483532,83.172,83.143,2.63952297]
[1773027898496,2.76483532,83.17,83.143,2.63952297]
[1773027898693,2.76483532,83.169,83.143,2.63952297]
[1773027899595,4.44436523,83.17,83.137,2.63952297]
[1773027899596,2.76483532,83.167,83.137,2.63952297]
[1773027899797,4.44436523,83.16,83.131,12.02920691]
[1773027899982,2.76483532,83.159,83.131,12.02920691]
[1773027900383,2.76483532,83.159,83.132,2.63952297]
[1773027901501,2.76483532,83.149,83.111,2.63952297]
[1773027902103,2.76483532,83.148,83.121,2.63952297]
[1773027903606,2.80155205,83.154,83.121,2.63952297]
[1773027904203,2.80155205,83.149,83.121,2.63952297]
[1773027904802,2.80155205,83.147,83.122,12.03050937]
[1773027905015,2.80155205,83.147,83.114,2.59955904]
[1773027905304,2.80155205,83.147,83.116,2.59955904]
[1773027906503,2.80155205,83.147,83.121,2.59955904]
[1773027906700,2.80155205,83.172,83.131,2.59955904]
[1773027906897,2.80155205,83.168,83.132,12.02906221]
[1773027908308,2.80155205,83.149,83.111,2.59955904]
[1773027909716,2.69354107,83.147,83.113,2.75512999]
[1773027910013,12.02674748,83.148,83.1,100.0]
[1773027910014,2.69354107,83.129,83.1,100.0]
[1773027910203,2.69354107,83.129,83.101,12.03354953]
[1773027910815,2.69354107,83.119,83.1,100.0]
[1773027913193,2.69354107,83.117,83.1,100.0]
[1773027914117,2.69354107,83.122,83.1,100.0]
[1773027916213,2.69354107,83.12,83.1,104.44436523]
[1773027916419,14.72014391,83.149,83.111,2.75512999]
[1773027916620,2.69354107,83.148,83.13,4.44436523]
[1773027916998,2.69354107,83.148,83.127,2.75512999]
[1773027917602,2.69354107,83.146,83.121,12.0306541]
[1773027917815,2.69354107,83.146,83.1,100.0]
[1773027917816,2.69354107,83.139,83.1,104.44436523]
[1773027918023,2.69354107,83.139,83.103,12.03321949]
[1773027918803,2.69354107,83.139,83.104,2.75512999]
[1773027919606,12.02819408,83.138,83.111,2.75512999]
[1773027919826,2.69354107,83.137,83.111,2.75512999]
[1773027920226,2.69354107,83.141,83.111,2.75512999]
[1773027922725,2.69354107,83.139,83.1,100.0]
[1773027922927,2.69354107,83.139,83.101,2.75512999]
[1773027923826,12.02819408,83.138,83.102,2.75512999]
[1773027924033,2.69354107,83.137,83.102,2.75512999]
[1773027926313,2.69354107,83.135,83.101,12.03354953]
[1773027926514,2.69354107,83.135,83.102,2.75512999]
[1773027928325,2.69354107,83.133,83.101,12.03354953]
[1773027928838,2.69354107,83.133,83.101,14.78867952]
[1773027929037,2.69354107,83.133,83.102,2.75512999]
[1773027929741,2.69354107,83.131,83.101,12.03354953]
[1773027929939,2.69354107,83.129,83.101,12.03354953]
[1773027931837,2.69354107,83.129,83.1,100.0]
[1773027932040,2.69354107,83.127,83.1,100.0]
[1773027933042,2.83909745,83.133,83.101,2.60992163]
[1773027933237,2.83909745,83.133,83.111,2.60992163]
[1773027934436,2.83909745,83.138,83.113,2.60992163]
[1773027934644,2.83909745,83.138,83.101,2.60992163]
[1773027935326,12.0280733,83.139,83.1,104.44436523]
[1773027935327,2.83909745,83.129,83.1,100.0]
[1773027936444,2.83909745,83.127,83.101,12.03354953]
[1773027936843,2.83909745,83.127,83.11,4.44436523]
[1773027937033,12.02964103,83.128,83.111,2.60992163]
[1773027937240,14.86873848,83.128,83.11,4.44436523]
[1773027938246,14.86873848,83.128,83.107,2.60992163]
[1773027939045,12.02964103,83.128,83.107,2.60992163]
[1773027940048,2.83909745,83.127,83.107,2.60992163]
[1773027941047,2.83909745,83.141,83.111,2.60992163]
[1773027942244,12.02790473,83.14,83.113,2.60992163]
[1773027942445,2.83909745,83.141,83.113,2.60992163]
[1773027942650,2.83909745,83.14,83.113,2.60992163]
[1773027945146,2.83909745,83.14,83.115,2.60992163]
[1773027945450,2.83909745,83.144,83.115,2.60992163]
[1773027947535,12.02747074,83.143,83.115,2.60992163]
[1773027947735,2.83909745,83.142,83.115,2.60992163]
[1773027948049,2.83909745,83.139,83.104,2.60992163]
[1773027949647,2.83909745,83.137,83.106,2.60992163]
[1773027950849,2.83909745,83.142,83.111,2.60992163]
[1773027951448,2.83909745,83.158,83.121,2.60992163]
[1773027951639,2.83909745,83.156,83.123,2.60992163]
[1773027952346,2.83909745,83.156,83.131,2.60992163]
[1773027952949,2.83909745,83.149,83.104,2.60992163]
[1773027953544,2.83909745,83.149,83.111,2.60992163]
[1773027954453,2.83909745,83.139,83.105,2.60992163]
[1773027955045,2.83909745,83.139,83.108,12.03249053]
[1773027955446,2.83909745,83.139,83.105,2.60992163]
[1773027956939,2.83909745,83.137,83.105,14.64282804]
[1773027957458,2.83909745,83.137,83.106,2.60992163]
[1773027961359,2.83909745,83.119,83.1,100.0]
[1773027962444,2.83909745,83.119,83.1,102.60992163]
[1773027962762,2.83909745,83.127,83.101,2.60992163]
[1773027963142,2.83909745,83.127,83.103,2.83533365]
[1773027963560,2.75511641,83.133,83.103,2.83533365]
[1773027963762,0.28432314,83.151,83.102,12.03340473]
[1773027963763,2.75511641,83.149,83.111,2.83533365]
[1773027964866,6.28170724,83.186,83.1,100.0]
[1773027964867,12.02603867,83.153,83.12,4.44639281]
[1773027965046,12.02603867,83.153,83.121,2.83533365]
[1773027965249,2.75511641,83.161,83.131,2.83533365]
[1773027965446,6.28068149,83.202,83.112,42.11184906]
[1773027965447,2.75511641,83.184,83.15,4.44639281]
[1773027965746,2.75511641,83.184,83.12,4.44639281]
[1773027965747,2.75511641,83.209,83.171,2.83533365]
[1773027965956,2.75511641,83.209,83.181,2.83533365]
[1773027966254,0.28432314,83.221,83.162,2.83533365]
[1773027966255,2.75511641,83.199,83.162,2.83533365]
[1773027966454,2.75511641,83.199,83.171,2.83533365]
[1773027966656,2.75511641,83.199,83.17,4.44639281]
[1773027966848,2.75511641,83.199,83.172,12.02327706]
[1773027967051,2.75511641,83.199,83.172,14.85861071]
[1773027967552,2.75511641,83.197,83.154,12.02579033]
[1773027967750,2.60263613,83.198,83.161,2.77628429]
[1773027968055,2.60263613,83.189,83.155,2.77628429]
[1773027968446,2.60263613,83.189,83.161,2.77628429]
[1773027968846,2.60263613,83.189,83.162,12.02472283]
[1773027969155,2.60263613,83.187,83.162,2.77628429]
[1773027969561,2.60263613,83.187,83.157,12.02544285]
[1773027969761,2.60263613,83.187,83.16,4.44639281]
[1773027969956,2.60263613,83.187,83.158,2.77628429]
[1773027971968,2.60263613,83.179,83.146,12.02691279]
[1773027972167,2.60263613,83.169,83.142,2.77628429]
[1773027972544,2.60263613,83.159,83.129,2.77628429]
[1773027972748,2.60263613,83.159,83.127,12.02970154]
[1773027972749,4.44639281,83.15,83.122,2.77628429]
[1773027972951,4.44639281,83.14,83.111,2.77628429]
[1773027973161,2.60263613,83.146,83.121,2.77628429]
[1773027973450,7.04902894,83.16,83.13,4.44639281]
[1773027973660,4.44639281,83.16,83.131,2.77628429]
[1773027973864,2.60263613,83.159,83.131,2.77628429]
[1773027974169,2.60263613,83.158,83.133,2.77628429]
[1773027974465,2.60263613,83.169,83.133,2.77628429]
[1773027975752,2.60263613,83.169,83.134,12.02877282]
[1773027976071,2.60263613,83.167,83.135,2.77628429]
[1773027976853,30.05413332,83.184,83.141,2.77628429]
[1773027976854,14.62570833,83.174,83.141,2.77628429]
[1773027977054,2.60263613,83.173,83.141,2.77628429]
[1773027977265,2.60263613,83.169,83.141,2.77628429]
[1773027977662,2.60263613,83.169,83.134,12.02877282]
[1773027977982,4.44639281,83.18,83.141,2.77628429]
[1773027978160,2.60263613,83.179,83.141,2.77628429]
[1773027980275,0.28432314,83.191,83.12,4.44639281]
[1773027980276,2.60263613,83.159,83.127,12.02967209]
[1773027980454,2.60263613,83.159,83.128,2.77628429]
[1773027980656,2.60263613,83.149,83.112,2.77628429]
[1773027981165,2.60263613,83.149,83.121,2.77628429]
[1773027983281,2.60263613,83.159,83.131,2.77628429]
[1773027983509,2.60263613,83.158,83.131,2.77628429]
[1773027984161,3.69383402,83.175,83.131,2.77628429]
[1773027984162,2.60263613,83.169,83.131,2.77628429]
[1773027984677,2.60263613,83.159,83.131,2.77628429]
[1773027985877,2.60263613,83.157,83.132,12.02906221]
[1773027987362,2.60263613,83.155,83.132,12.02906221]
[1773027988581,2.60263613,83.149,83.114,2.77628429]
[1773027988963,2.60263613,83.147,83.116,2.77628429]
[1773027989873,12.02674748,83.148,83.11,4.44639281]
[1773027989874,2.60263613,83.139,83.11,19.25489693]
[1773027990260,2.60263613,83.139,83.111,2.77628429]
[1773027993790,2.60263613,83.139,83.12,4.44639281]
[1773027993978,2.75182803,83.144,83.121,2.59665925]
[1773027994685,2.75182803,83.144,83.112,12.03195687]
[1773027994866,2.75182803,83.144,83.1,100.0]
[1773027994867,2.75182803,83.129,83.1,100.0]
[1773027995386,2.75182803,83.129,83.106,51.63567196]
[1773027995594,2.75182803,83.129,83.106,49.20788984]
[1773027995798,2.75182803,83.129,83.1,100.0]
[1773027995799,2.75182803,83.119,83.1,100.0]
[1773027995973,4.44639281,83.12,83.1,100.0]
[1773027995974,2.75182803,83.117,83.1,100.0]
[1773027996889,12.03053964,83.122,83.101,2.59665925]
[1773027997091,2.75182803,83.144,83.111,2.59665925]
[1773027997287,2.75182803,83.142,83.111,2.59665925]
[1773027998094,2.75182803,83.138,83.105,14.62956229]
[1773027998397,2.75182803,83.138,83.106,2.59665925]
[1773027999794,12.02833876,83.137,83.106,2.59665925]
[1773028000091,2.75182803,83.136,83.106,2.59665925]
[1773028000493,2.75182803,83.136,83.1,104.44639281]
[1773028001886,2.75182803,83.129,83.1,104.44639281]
[1773028003178,2.75182803,83.129,83.1,100.0]
[1773028003572,2.75182803,83.129,83.1,104.44639281]
[1773028004392,60.13534608,83.146,83.08,4.54639281]
[1773028004393,4.44639281,83.12,83.08,4.54639281]
[1773028004585,2.75182803,83.119,83.081,2.59665925]
[1773028005693,2.75182803,83.109,83.08,4.54639281]
[1773028005887,2.75182803,83.084,83.022,2.59665925]
[1773028006077,2.75182803,83.059,83.031,12.04369452]
[1773028006390,2.75182803,83.059,83.032,2.59665925]
[1773028006571,2.75182803,83.057,83.02,0.1]
[1773028006778,0.28432314,83.058,82.98,2.59665925]
[1773028006779,2.75182803,83.037,82.98,2.59665925]
[1773028006979,0.28432314,83.036,83.001,2.59665925]
[1773028007173,2.75182803,83.029,82.969,2.59665925]
[1773028007483,2.75182803,83.029,82.991,2.59665925]
[1773028007894,2.75182803,83.019,82.984,12.0503742]
[1773028008192,2.75182803,83.009,82.961,2.59665925]
[1773028008398,2.75182803,83.019,82.99,14.5408761]
[1773028008697,2.75182803,83.019,82.991,2.59665925]
[1773028009000,2.75182803,83.019,82.981,2.59665925]
[1773028009194,12.04412969,83.028,83.0,11.94421685]
[1773028009376,2.75182803,83.035,83.001,2.59665925]
[1773028009795,2.75182803,83.035,83.003,2.59665925]
[1773028010497,2.75182803,83.039,83.003,2.59665925]
[1773028010885,2.75182803,83.039,83.011,2.59665925]
[1773028011287,12.04237182,83.041,83.011,2.59665925]
[1773028011681,3.03615117,83.045,83.01,11.94421685]
[1773028011898,2.8939896,83.045,83.01,11.94421685]
[1773028012597,2.75182803,83.045,83.01,11.94421685]
[1773028012797,2.75182803,83.05,83.02,11.94421685]
[1773028013000,2.75182803,83.059,83.02,11.94421685]
[1773028013395,2.75182803,83.058,83.02,11.94421685]
[1773028013595,2.75182803,83.069,83.03,11.93281408]
[1773028013803,2.75182803,83.067,83.03,11.93281408]
[1773028014610,2.75182803,83.067,83.04,11.93281408]
[1773028014807,2.75182803,83.077,83.05,11.93281408]
[1773028015488,2.75182803,83.069,83.04,11.93281408]
[1773028015913,2.75182803,83.069,83.041,12.04224419]
[1773028016088,2.75182803,83.059,83.015,2.59665925]
[1773028016406,2.75182803,83.059,83.02,11.93281408]
[1773028016602,2.75182803,83.058,83.02,11.93281408]
[1773028016983,2.75182803,83.058,83.021,2.59665925]
[1773028017303,2.75182803,83.058,83.031,2.59665925]
[1773028017689,2.75182803,83.058,83.02,11.93281408]
[1773028018007,2.75182803,83.058,83.021,2.59665925]
[1773028018186,2.75182803,83.058,83.03,11.93281408]
[1773028018389,2.75182803,83.058,83.0,60.24096385]
[1773028018590,2.79063128,83.049,83.01,11.93281408]
[1773028018907,2.79063128,83.029,83.0,54.10148877]
[1773028019103,2.79063128,83.028,83.0,54.10148877]
[1773028019308,2.79063128,83.028,83.0,42.16867469]
[1773028019905,2.79063128,83.028,83.0,30.12048192]
[1773028020099,2.79063128,83.028,83.0,42.053296]
[1773028020409,2.79063128,83.028,83.0,42.11660451]
[1773028021305,2.79063128,83.028,82.992,0.06948442]
[1773028021887,2.79063128,83.028,83.0,11.93281408]
[1773028022111,2.79063128,83.028,82.99,11.93281408]
[1773028023211,2.79063128,83.026,82.99,11.93281408]
[1773028024006,2.79063128,83.026,82.991,42.26681101]
[1773028024204,2.79063128,83.026,82.992,0.09356332]
[1773028024421,2.84033148,83.058,83.02,11.93281408]
[1773028024713,65.4284098,83.036,83.02,11.93281408]
[1773028025704,2.84033148,83.05,82.98,11.93281408]
[1773028025705,2.84033148,83.07,83.03,11.93281408]
[1773028026005,2.84033148,83.07,83.021,12.0451452]
[1773028026011,2.84033148,83.081,83.05,11.93281408]
[1773028026201,2.84033148,83.099,83.06,11.93281408]
[1773028026593,2.84033148,83.098,83.06,11.93281408]
[1773028027113,2.84033148,83.098,83.07,11.93281408]
[1773028027409,2.84033148,83.079,83.04,11.93281408]
[1773028027914,2.84033148,83.059,83.034,12.04313032]
[1773028028699,2.84033148,83.059,83.022,12.04500012]
[1773028031509,11.93281408,83.06,83.022,12.04500012]
[1773028031510,2.84033148,83.057,83.022,12.04500012]
[1773028031714,2.84033148,83.057,83.03,11.93281408]
[1773028032305,2.84033148,83.057,83.04,11.93281408]
[1773028032497,3.12465462,83.079,83.04,11.93281408]
[1773028032698,2.84033148,83.078,83.03,11.93281408]
[1773028032899,2.84033148,83.069,83.03,11.93281408]
[1773028034118,2.84033148,83.069,83.031,42.2083613]
[1773028034314,2.84033148,83.069,83.04,11.93281408]
[1773028034904,2.84033148,83.069,83.04,11.99347117]
[1773028035313,0.14216157,83.097,83.031,42.15293082]
[1773028035314,2.84033148,83.078,83.05,11.93281408]
[1773028036094,2.84033148,83.078,83.051,12.04079421]
[1773028036296,11.93281408,83.09,83.051,12.04079421]
[1773028036297,2.84033148,83.086,83.051,12.04079421]
[1773028036708,2.84033148,83.086,83.051,42.14277973]
[1773028037800,2.84033148,83.086,83.06,11.93281408]
[1773028038323,0.28432314,83.118,83.027,0.28432314]
[1773028038324,2.84033148,83.118,83.071,0.0809065]
[1773028038528,2.84033148,83.116,83.08,11.93281408]
[1773028038812,2.84033148,83.109,83.071,0.0809065]
[1773028039312,2.84033148,83.109,83.08,11.93281408]
[1773028039714,11.93281408,83.14,83.101,2.58413815]
[1773028040104,0.2,83.15,83.111,2.58413815]
[1773028040303,0.2,83.15,83.121,42.10728936]
[1773028040522,12.02660284,83.149,83.121,12.0306541]
[1773028040724,11.93281408,83.14,83.07,2.58413815]
[1773028040920,11.93281408,83.13,83.091,2.58413815]
[1773028041524,11.93281408,83.14,83.1,11.93281408]
[1773028041727,2.68558369,83.139,83.1,11.93281408]
[1773028041925,2.68558369,83.137,83.101,12.03354953]
[1773028043725,2.68558369,83.137,83.11,11.93281408]